bitfinex-derivatives/quotes_BTCF0:USTF0_20251128
["timestamp","ask_amount","ask_price","bid_price","bid_amount"]
[1764347026135,0.10455,91482.0,91481.0,0.00116395]
[1764347026536,0.61386171,91482.0,91481.0,0.001]
[1764347026738,0.0109335,91453.0,91440.0,0.28436113]
[1764347026938,0.0109331,91457.0,91440.0,0.53436113]
[1764347027145,0.0109331,91457.0,91456.0,0.04991]
[1764347027346,0.0109331,91457.0,91440.0,0.04410042]
[1764347027645,0.0147,91455.0,91440.0,0.04991]
[1764347027849,0.112485,91440.0,91439.0,0.00029681]
[1764347028044,0.02592,91457.0,91450.0,0.00999999]
[1764347028350,0.02592,91457.0,91440.0,0.03027]
[1764347028351,0.0109349,91441.0,91440.0,0.13158]
[1764347029145,0.00016404,91450.0,91443.0,0.10131]
[1764347029146,0.0109345,91444.0,91443.0,0.10131]
[1764347029445,0.00016404,91450.0,91447.0,0.10131]
[1764347029653,0.00016404,91450.0,91449.0,0.10131]
[1764347031052,0.00316404,91450.0,91449.0,0.10231]
[1764347031646,0.00416404,91450.0,91449.0,0.10231]
[1764347034146,0.00416404,91450.0,91449.0,0.001]
[1764347035856,0.00416404,91450.0,91439.0,0.00029681]
[1764347035857,0.010935,91440.0,91439.0,0.00029681]
[1764347036854,0.010935,91440.0,91439.0,0.10160681]
[1764347037748,0.011935,91440.0,91439.0,0.10260681]
[1764347039745,0.001,91440.0,91439.0,0.10260681]
[1764347039952,0.00016404,91450.0,91449.0,0.10131]
[1764347040652,0.0109339,91449.0,91448.0,0.03027]
[1764347040851,0.010935,91440.0,91439.0,0.00129681]
[1764347041260,0.010935,91440.0,91439.0,0.05020681]
[1764347041557,0.010935,91440.0,91439.0,0.10160681]
[1764347041955,0.0109365,91428.0,91420.0,0.19924126]
[1764347042255,0.0109365,91428.0,91427.0,0.12006]
[1764347042455,0.010934,91448.0,91434.0,0.12006]
[1764347042456,0.0109357,91435.0,91434.0,0.12006]
[1764347042960,0.0109371,91423.0,91422.0,0.12006]
[1764347043164,0.00012692,91423.0,91422.0,0.12006]
[1764347043563,0.00016404,91432.0,91431.0,0.12006]
[1764347043958,0.001,91440.0,91439.0,0.12006]
[1764347044159,0.0109329,91458.0,91456.0,0.12006]
[1764347044464,0.0109309,91474.0,91456.0,0.12006]
[1764347044465,0.0109325,91461.0,91456.0,0.12006]
[1764347044664,0.013143,91457.0,91456.0,0.12006]
[1764347044862,0.02848,91476.0,91456.0,0.12006]
[1764347045067,0.01109484,91475.0,91474.0,0.07374]
[1764347045363,0.00016404,91475.0,91474.0,0.12006]
[1764347045566,0.0109314,91471.0,91462.0,0.03019]
[1764347045869,0.0109314,91471.0,91470.0,0.12006]
[1764347046060,0.00016404,91475.0,91474.0,0.12006]
[1764347046457,0.01109484,91475.0,91474.0,0.12006]
[1764347046852,0.00016404,91475.0,91474.0,0.12006]
[1764347047060,0.01109484,91475.0,91474.0,0.12006]
[1764347047462,0.13580484,91475.0,91474.0,0.001]
[1764347047959,0.0109328,91458.0,91457.0,0.12022404]
[1764347048165,0.0109328,91458.0,91457.0,0.00016404]
[1764347048166,0.1346428,91458.0,91457.0,0.00016404]
[1764347048366,0.1346428,91458.0,91420.0,0.25409113]
[1764347048367,0.0109341,91448.0,91420.0,0.25409113]
[1764347048664,0.02848,91455.0,91442.0,0.12006]
[1764347048969,0.0109346,91443.0,91442.0,0.12006]
[1764347049261,0.1116,91460.0,91451.0,0.07374]
[1764347049262,0.00016404,91452.0,91451.0,0.07374]
[1764347049565,0.01109764,91452.0,91451.0,0.12006]
[1764347049766,0.0109337,91451.0,91440.0,0.03019]
[1764347049967,0.00016404,91452.0,91451.0,0.12006]
[1764347051168,0.010931,91474.0,91473.0,0.07374]
[1764347051464,0.02996,91480.0,91442.0,0.001]
[1764347051465,0.02848,91472.0,91442.0,0.001]
[1764347051761,0.12371,91452.0,91451.0,0.001]
[1764347052359,0.07787,91452.0,91442.0,0.00016404]
[1764347052555,0.0109341,91448.0,91447.0,0.12006]
[1764347052958,0.0109346,91443.0,91442.0,0.00016404]
[1764347053164,0.1346446,91443.0,91442.0,0.00016404]
[1764347053770,0.0888046,91443.0,91442.0,0.00016404]
[1764347053973,0.02848,91456.0,91423.0,0.05864677]
[1764347054171,0.0109366,91427.0,91426.0,0.12006]
[1764347054471,0.0109358,91434.0,91426.0,0.12006]
[1764347054677,0.0109361,91431.0,91430.0,0.08229]
[1764347054863,0.0109361,91431.0,91430.0,0.16233]
[1764347055064,0.0109357,91434.0,91433.0,0.16233]
[1764347055571,0.0109368,91426.0,91421.0,0.00016404]
[1764347055870,0.0109363,91430.0,91421.0,0.00016404]
[1764347056067,0.00016404,91440.0,91433.0,0.08229]
[1764347056269,0.00016404,91440.0,91439.0,0.08229]
[1764347056671,0.0109365,91428.0,91427.0,0.16233]
[1764347057271,0.0109356,91436.0,91431.0,0.16233]
[1764347057476,0.0109366,91427.0,91424.0,0.04938]
[1764347057770,0.0109366,91427.0,91426.0,0.16233]
[1764347059370,0.0109362,91430.0,91429.0,0.16233]
[1764347059563,0.001,91436.0,91421.0,0.00016404]
[1764347059871,0.0109371,91423.0,91422.0,0.16233]
[1764347060073,0.0109366,91427.0,91426.0,0.16233]
[1764347061071,0.0129366,91427.0,91426.0,0.16733]
[1764347061470,0.1748066,91427.0,91426.0,0.005]
[1764347062269,0.1748066,91427.0,91421.0,0.00016404]
[1764347062270,0.1728071,91422.0,91421.0,0.00016404]
[1764347067486,0.1748071,91422.0,91421.0,0.00516404]
[1764347067670,0.04715,91420.0,91389.0,0.01413528]
[1764347067870,0.0109401,91398.0,91372.0,0.05864677]
[1764347068175,0.0109418,91384.0,91383.0,0.16233]
[1764347068485,0.1208,91404.0,91383.0,0.16233]
[1764347068777,0.0109417,91385.0,91383.0,0.16233]
[1764347068975,0.0109417,91385.0,91384.0,0.16233]
[1764347069678,0.003,91398.0,91384.0,0.16233]
[1764347069876,0.0109413,91388.0,91387.0,0.16233]
[1764347070079,0.0109406,91394.0,91393.0,0.08229]
[1764347070275,0.0109402,91397.0,91393.0,0.08229]
[1764347070475,0.0109401,91397.0,91396.0,0.08229]
[1764347070676,0.00016414,91403.0,91381.0,0.00999129]
[1764347070677,0.00016414,91403.0,91402.0,0.08004]
[1764347070877,0.01110354,91403.0,91402.0,0.16233]
[1764347071071,0.01110354,91403.0,91381.0,0.00999129]
[1764347071072,0.002,91394.0,91381.0,0.02093329]
[1764347071273,0.002,91394.0,91393.0,0.16233]
[1764347071676,0.0109398,91401.0,91400.0,0.16607]
[1764347071877,0.00216414,91403.0,91402.0,0.15706]
[1764347073574,0.07936414,91403.0,91402.0,0.15706]
[1764347073775,0.07736414,91403.0,91402.0,0.15706]
[1764347073976,0.0109406,91394.0,91393.0,0.15706]
[1764347074182,0.00016414,91403.0,91402.0,0.15706]
[1764347074381,0.01310354,91403.0,91402.0,0.15706]
[1764347074876,0.07936414,91403.0,91402.0,0.15706]
[1764347075084,0.00016414,91403.0,91402.0,0.15706]
[1764347075484,0.07736414,91403.0,91402.0,0.15706]
[1764347075885,0.15602414,91403.0,91402.0,0.07328]
[1764347076581,0.0881406,91393.0,91392.0,0.15706]
[1764347076786,0.0109419,91382.0,91381.0,0.16705129]
[1764347077885,0.0109415,91386.0,91385.0,0.15706]
[1764347080887,0.0129415,91386.0,91385.0,0.15706]
[1764347081087,0.0109419,91382.0,91381.0,0.16705129]
[1764347082178,0.002,91386.0,91381.0,0.00999129]
[1764347082378,0.002,91386.0,91385.0,0.15706]
[1764347082584,0.0109413,91388.0,91387.0,0.15706]
[1764347083576,0.00016414,91403.0,91400.0,0.15706]
[1764347083775,0.0109409,91391.0,91390.0,0.20438]
[1764347084283,0.00016414,91403.0,91402.0,0.15706]
[1764347084682,0.010938,91415.0,91414.0,0.15706]
[1764347084980,0.20208896,91440.0,91403.0,0.04732]
[1764347084981,0.0109375,91420.0,91419.0,0.15706]
[1764347085184,0.0109335,91453.0,91425.0,0.15706]
[1764347085393,0.04893,91468.0,91425.0,0.15706]
[1764347085394,0.10939183,91441.0,91440.0,0.15706]
[1764347085690,0.0856,91470.0,91468.0,0.07328]
[1764347085881,0.0856,91470.0,91469.0,0.15706]
[1764347086278,0.00016405,91478.0,91469.0,0.15706]
[1764347086476,0.010931,91474.0,91469.0,0.15706]
[1764347086680,0.00016405,91478.0,91474.0,0.07328]
[1764347086681,0.0109309,91475.0,91474.0,0.07328]
[1764347087082,0.00016405,91478.0,91474.0,0.07328]
[1764347087385,0.00016405,91478.0,91477.0,0.15706]
[1764347088286,0.0109264,91513.0,91485.0,0.20438]
[1764347088487,0.15056,91517.0,91485.0,0.04732]
[1764347088688,0.0109293,91488.0,91470.0,0.24940896]
[1764347088986,0.0109287,91493.0,91470.0,0.24940896]
[1764347089184,0.00016396,91491.0,91472.0,0.00016396]
[1764347089385,0.01093,91482.0,91476.0,0.07328]
[1764347089779,0.86093,91482.0,91476.0,0.07328]
[1764347089985,0.86093,91482.0,91481.0,0.07328]
[1764347090693,0.93813,91482.0,91472.0,0.00016396]
[1764347090893,0.69813,91482.0,91472.0,0.00016396]
[1764347091094,0.8,91482.0,91481.0,0.15706]
[1764347091287,0.002,91488.0,91481.0,0.15706]
[1764347091487,0.522,91488.0,91487.0,0.15706]
[1764347091687,0.8806,91488.0,91487.0,0.15706]
[1764347091886,0.37,91488.0,91487.0,0.15706]
[1764347092187,0.81452,91488.0,91487.0,0.15706]
[1764347092688,0.0109304,91479.0,91472.0,0.00016396]
[1764347092890,0.0109308,91475.0,91472.0,0.00016396]
[1764347093093,0.0772,91473.0,91472.0,0.00016396]
[1764347093397,0.45,91473.0,91472.0,0.07344396]
[1764347093586,0.76,91473.0,91472.0,0.07344396]
[1764347093889,0.91586,91473.0,91472.0,0.00016396]
[1764347095286,0.52586,91473.0,91472.0,0.00016396]
[1764347095483,0.65586,91473.0,91472.0,0.00016396]
[1764347095688,0.65586,91473.0,91453.0,0.0154617]
[1764347095689,0.0109318,91467.0,91450.0,0.20208896]
[1764347095888,0.0109326,91460.0,91450.0,0.20208896]
[1764347096088,0.37,91460.0,91459.0,0.15706]
[1764347096292,0.26,91460.0,91459.0,0.15706]
[1764347096483,0.5509326,91460.0,91459.0,0.15706]
[1764347096687,0.3709326,91460.0,91459.0,0.15706]
[1764347096887,0.010933,91457.0,91450.0,0.00016396]
[1764347097096,0.0772,91451.0,91450.0,0.00016396]
[1764347097397,0.94586,91451.0,91450.0,0.00016396]
[1764347097697,1.22586,91451.0,91450.0,0.00016396]
[1764347097991,1.07,91451.0,91430.0,0.20208896]
[1764347098296,0.17456,91450.0,91430.0,0.20208896]
[1764347098496,0.0109344,91445.0,91430.0,0.20208896]
[1764347098692,0.2009344,91445.0,91430.0,0.20208896]
[1764347099087,0.4409345,91445.0,91440.0,0.15706]
[1764347099293,0.4709345,91445.0,91440.0,0.15706]
[1764347099684,0.46,91445.0,91444.0,0.07328]
[1764347099885,0.00016396,91447.0,91446.0,0.15706]
[1764347100089,0.27536396,91447.0,91446.0,0.15706]
[1764347100291,0.96629816,91447.0,91446.0,0.15706]
[1764347101087,0.67536396,91447.0,91446.0,0.15706]
[1764347101287,0.00016396,91447.0,91446.0,0.15706]
[1764347101691,0.0109328,91459.0,91458.0,0.07979]
[1764347101892,0.0109328,91459.0,91458.0,0.15599]
[1764347101893,0.56776,91459.0,91458.0,0.15599]
[1764347102095,0.0109308,91476.0,91475.0,0.0762]
[1764347102292,0.01,91476.0,91475.0,0.15599]
[1764347102493,0.04893,91500.0,91475.0,0.15599]
[1764347102695,0.0109301,91481.0,91478.0,0.00016396]
[1764347102897,0.07252,91479.0,91478.0,0.00016396]
[1764347103089,0.009,91459.0,91452.0,0.15599]
[1764347103295,0.17452,91458.0,91452.0,0.15599]
[1764347103492,0.78452,91458.0,91457.0,0.15599]
[1764347103897,0.45452,91458.0,91457.0,0.15599]
[1764347104201,0.009,91459.0,91458.0,0.15599]
[1764347104997,0.0242,91463.0,91462.0,0.15599]
[1764347105201,0.00016396,91468.0,91467.0,0.15599]
[1764347108400,0.00816396,91468.0,91467.0,0.15599]
[1764347108800,0.00016396,91468.0,91467.0,0.15599]
[1764347109103,0.00816396,91468.0,91467.0,0.15599]
[1764347109906,0.62816396,91468.0,91457.0,0.01545271]
[1764347110102,0.54552396,91468.0,91458.0,0.20208896]
[1764347110304,0.68816396,91468.0,91458.0,0.20208896]
[1764347110602,0.0109329,91458.0,91457.0,0.15599]
[1764347111509,0.0109337,91451.0,91450.0,0.15599]
[1764347111702,0.0109349,91441.0,91440.0,0.0762]
[1764347112007,0.0834558,91433.0,91432.0,0.15599]
[1764347112203,0.0109369,91425.0,91424.0,0.15599]
[1764347112404,0.4309369,91425.0,91424.0,0.15599]
[1764347112605,0.8634569,91425.0,91424.0,0.15599]
[1764347112913,0.0109388,91409.0,91408.0,0.0762]
[1764347113112,0.7909388,91409.0,91408.0,0.0762]
[1764347113509,0.7909388,91409.0,91395.0,0.05624179]
[1764347113510,0.0109401,91398.0,91395.0,0.01489179]
[1764347113710,0.0109401,91398.0,91397.0,0.14064]
[1764347113906,0.0109399,91399.0,91397.0,0.14064]
[1764347114214,0.0109399,91399.0,91390.0,0.20208896]
[1764347114215,0.16,91399.0,91398.0,0.07174]
[1764347114406,0.28,91399.0,91398.0,0.07174]
[1764347115203,0.68,91399.0,91390.0,0.01478883]
[1764347115502,0.04,91399.0,91389.0,0.20208896]
[1764347115702,0.002,91399.0,91398.0,0.07174]
[1764347115911,0.002,91399.0,91398.0,0.14064]
[1764347118110,0.00016405,91403.0,91398.0,0.14064]
[1764347118305,0.00016405,91403.0,91402.0,0.14064]
[1764347118913,0.01696,91421.0,91419.0,0.14064]
[1764347119214,0.01696,91421.0,91420.0,0.14064]
[1764347119715,0.01696,91421.0,91411.0,0.00016405]
[1764347119911,0.0109377,91417.0,91416.0,0.14064]
[1764347120311,0.0109383,91412.0,91411.0,0.00016405]
[1764347120509,0.1522683,91412.0,91411.0,0.00016405]
[1764347121219,0.2578683,91412.0,91411.0,0.00016405]
[1764347121510,0.00016405,91430.0,91429.0,0.07174]
[1764347121713,0.18506025,91430.0,91429.0,0.07174]
[1764347121902,0.17412405,91430.0,91429.0,0.14064]
[1764347122213,0.00016405,91430.0,91429.0,0.14064]
[1764347123406,0.01016405,91430.0,91429.0,0.14064]
[1764347125009,0.00616405,91430.0,91429.0,0.14064]
[1764347126308,0.00516405,91430.0,91429.0,0.14064]
[1764347126505,0.07747405,91430.0,91429.0,0.07174]
[1764347126913,0.00516405,91430.0,91422.0,0.01488878]
[1764347127108,0.00516405,91430.0,91421.0,0.14064]
[1764347127313,0.00516405,91430.0,91410.0,0.29401531]
[1764347127314,0.0109375,91419.0,91410.0,0.29401531]
[1764347127509,0.0109375,91419.0,91418.0,0.07174]
[1764347127709,0.00516405,91430.0,91418.0,0.14064]
[1764347128112,0.0109369,91425.0,91424.0,0.07174]
[1764347128505,0.0109369,91425.0,91424.0,0.14064]
[1764347129413,0.00616405,91430.0,91424.0,0.14064]
[1764347129613,0.00616405,91430.0,91429.0,0.14064]
[1764347130013,0.00016405,91430.0,91429.0,0.14064]
[1764347130217,0.00016405,91430.0,91429.0,0.1515763]
[1764347130521,0.00016405,91430.0,91429.0,0.14064]
[1764347130830,0.00016405,91430.0,91429.0,0.58804]
[1764347131818,0.00027339,91446.0,91445.0,0.13288]
[1764347132018,0.210028,91499.0,91429.0,0.7774]
[1764347132019,0.0109319,91466.0,91465.0,0.13288]
[1764347132320,0.0109296,91486.0,91440.0,0.0382649]
[1764347132321,0.0109316,91469.0,91468.0,0.13288]
[1764347132520,0.0109281,91498.0,91469.0,0.0109315]
[1764347132722,0.0109281,91498.0,91455.0,0.0324]
[1764347132723,0.00016405,91486.0,91485.0,0.13288]
[1764347133016,0.00016405,91486.0,91475.0,0.26481601]
[1764347133017,0.0109287,91493.0,91492.0,0.13288]
[1764347133424,0.0109287,91493.0,91470.0,0.04013]
[1764347133425,0.0109274,91504.0,91497.0,0.13288]
[1764347133613,0.0109263,91513.0,91503.0,0.06557]
[1764347134011,0.00016395,91517.0,91503.0,0.06557]
[1764347134219,0.0109262,91514.0,91503.0,0.06557]
[1764347134417,0.00016395,91517.0,91503.0,0.06557]
[1764347134724,0.0109263,91513.0,91503.0,0.06557]
[1764347134920,0.00016395,91517.0,91499.0,0.00016395]
[1764347134921,0.06519,91504.0,91499.0,0.00016395]
[1764347135119,0.0109266,91511.0,91510.0,0.06557]
[1764347135321,0.0109266,91511.0,91510.0,0.13288]
[1764347135520,0.0109266,91511.0,91510.0,0.06557]
[1764347135719,0.0109276,91502.0,91501.0,0.06557]
[1764347136120,0.0109272,91506.0,91501.0,0.06557]
[1764347136324,0.010927,91507.0,91506.0,0.13288]
[1764347137417,0.010927,91507.0,91499.0,0.00016395]
[1764347137418,0.0109265,91511.0,91510.0,0.13288]
[1764347137721,0.007,91513.0,91512.0,0.13288]
[1764347137928,0.010926,91516.0,91515.0,0.13288]
[1764347138825,0.00016395,91517.0,91516.0,0.13288]
[1764347139218,0.0109243,91530.0,91525.0,0.13288]
[1764347139528,0.0109242,91531.0,91525.0,0.13288]
[1764347139721,0.010924,91533.0,91525.0,0.13288]
[1764347140327,0.0109214,91554.0,91525.0,0.13288]
[1764347140328,0.00016395,91535.0,91525.0,0.13288]
[1764347140529,0.00016395,91535.0,91534.0,0.13288]
[1764347140714,0.010922,91549.0,91548.0,0.13288]
[1764347140919,0.0547089,91575.0,91555.0,0.13288]
[1764347141123,0.0109211,91557.0,91556.0,0.13288]
[1764347141720,0.0109211,91557.0,91530.0,0.04013]
[1764347141721,0.14692,91549.0,91548.0,0.002]
[1764347142424,0.0109221,91548.0,91547.0,0.13304385]
[1764347142927,0.025921,91557.0,91556.0,0.13288]
[1764347143224,0.13392,91548.0,91547.0,0.00016385]
[1764347144520,0.14592,91548.0,91547.0,0.00216385]
[1764347145220,0.012,91548.0,91547.0,0.06773385]
[1764347145424,0.012,91548.0,91547.0,0.13504385]
[1764347146229,0.14592,91548.0,91547.0,0.00216385]
[1764347149130,0.0109246,91527.0,91510.0,0.25388531]
[1764347149330,0.0109255,91520.0,91510.0,0.16]
[1764347149627,0.06519,91520.0,91519.0,0.13288]
[1764347149835,0.0109253,91521.0,91520.0,0.13288]
[1764347151325,0.1448453,91521.0,91520.0,0.06557]
[1764347151527,0.1508453,91521.0,91520.0,0.001]
[1764347152028,0.006,91521.0,91520.0,0.13388]
[1764347153025,0.13992,91521.0,91520.0,0.001]
[1764347153926,0.006,91521.0,91520.0,0.13388]
[1764347155136,0.07119,91521.0,91520.0,0.13388]
[1764347155531,0.13992,91521.0,91520.0,0.001]
[1764347156034,0.07119,91521.0,91520.0,0.13388]
[1764347156233,0.006,91521.0,91520.0,0.13388]
[1764347159341,0.13992,91521.0,91520.0,0.001]
[1764347161241,0.04379,91504.0,91468.0,0.07792818]
[1764347161536,0.0109289,91492.0,91491.0,0.13288]
[1764347161736,0.04379,91504.0,91493.0,0.12945]
[1764347161933,0.0109241,91531.0,91511.0,0.06081]
[1764347162134,0.0109254,91520.0,91519.0,0.06081]
[1764347162436,0.06481,91521.0,91520.0,0.12469]
[1764347162641,0.13381,91521.0,91510.0,0.25404926]
[1764347162843,0.006,91521.0,91520.0,0.12469]
[1764347163031,0.0697365,91511.0,91510.0,0.00016395]
[1764347163231,0.1387365,91511.0,91510.0,0.00016395]
[1764347163639,0.1387365,91511.0,91510.0,0.06097395]
[1764347163830,0.1387365,91511.0,91510.0,0.00016395]
[1764347164041,0.1417365,91511.0,91510.0,0.00116395]
[1764347164241,0.1417365,91511.0,91468.0,0.0109315]
[1764347164242,0.04044,91490.0,91468.0,0.0109315]
[1764347164545,0.05881,91461.0,91450.0,0.25388531]
[1764347164737,0.04044,91476.0,91460.0,0.12469]
[1764347165747,0.0109315,91469.0,91460.0,0.37857531]
[1764347166039,0.0109311,91473.0,91460.0,0.37857531]
[1764347166241,0.00016395,91477.0,91460.0,0.37857531]
[1764347166242,0.00016395,91477.0,91476.0,0.12469]
[1764347167743,0.00816395,91477.0,91476.0,0.12469]
[1764347168346,0.00816395,91477.0,91476.0,0.1356207]
[1764347168545,0.00816395,91477.0,91476.0,0.4956207]
[1764347168740,0.01044,91509.0,91476.0,0.36]
[1764347168942,0.02,91510.0,91496.0,0.06081]
[1764347169533,0.0109279,91499.0,91498.0,0.12469]
[1764347169733,0.12781,91499.0,91489.0,0.00016395]
[1764347169936,0.05881,91490.0,91489.0,0.00016395]
[1764347170348,0.069739,91490.0,91489.0,0.00016395]
[1764347170940,0.138739,91490.0,91489.0,0.00016395]
[1764347171342,0.0109305,91478.0,91462.0,0.12469]
[1764347171851,0.012,91490.0,91489.0,0.12469]
[1764347172038,0.022929,91490.0,91489.0,0.12469]
[1764347172238,0.0109292,91489.0,91472.0,0.0109311]
[1764347172446,0.0109295,91487.0,91472.0,0.0109312]
[1764347172655,0.01216395,91490.0,91489.0,0.12469]
[1764347173336,0.00016395,91490.0,91489.0,0.12469]
[1764347173946,0.05897395,91490.0,91489.0,0.06081]
[1764347174155,0.13277295,91490.0,91489.0,0.002]
[1764347175658,0.00716395,91490.0,91489.0,0.05937]
[1764347175952,0.00716395,91490.0,91489.0,0.11621]
[1764347176745,0.00332005,91490.0,91489.0,0.11621]
[1764347177341,0.15344005,91490.0,91489.0,0.002]
[1764347178351,0.11944005,91490.0,91489.0,0.05937]
[1764347178747,0.06357005,91490.0,91489.0,0.11621]
[1764347180150,0.00332005,91490.0,91489.0,0.11621]
[1764347180352,0.00332005,91490.0,91489.0,0.37621]
[1764347183146,0.00016395,91499.0,91498.0,0.1251381]
[1764347183347,0.00016395,91499.0,91498.0,0.1551381]
[1764347183560,0.00016395,91499.0,91498.0,0.1251381]
[1764347183760,0.00016395,91499.0,91498.0,0.4751381]
[1764347183956,0.0109239,91533.0,91504.0,0.02733]
[1764347184253,0.0109256,91519.0,91506.0,0.11421]
[1764347184454,0.0109267,91510.0,91509.0,0.11421]
[1764347186156,0.0711777,91501.0,91500.0,0.11437395]
[1764347186457,0.1270477,91501.0,91500.0,0.00016395]
[1764347187358,0.0109299,91483.0,91482.0,0.11421]
[1764347187658,0.0109291,91490.0,91485.0,0.05737]
[1764347187852,0.0711791,91490.0,91489.0,0.11421]
[1764347188249,0.01093,91482.0,91480.0,0.20183272]
[1764347188561,0.11612,91481.0,91480.0,0.00016395]
[1764347188946,0.06025,91481.0,91480.0,0.11437395]
[1764347189147,0.0109299,91483.0,91482.0,0.11421]
[1764347189348,0.0109294,91487.0,91482.0,0.12514]
[1764347189558,0.0109297,91485.0,91482.0,0.11421]
[1764347189862,0.00016395,91499.0,91484.0,0.0109297]
[1764347190060,0.0109289,91491.0,91490.0,0.05737]
[1764347190259,0.0109286,91494.0,91490.0,0.11421]
[1764347190464,0.0109286,91494.0,91493.0,0.11421]
[1764347190762,0.071179,91490.0,91489.0,0.05737]
[1764347190951,0.127049,91490.0,91489.0,0.05737]
[1764347191856,0.0109289,91492.0,91491.0,0.11509]
[1764347192461,0.0109285,91495.0,91494.0,0.11509]
[1764347193359,0.1256885,91495.0,91494.0,0.11509]
[1764347193854,0.1256885,91495.0,91494.0,0.057]
[1764347194361,0.0119285,91495.0,91494.0,0.11809]
[1764347194554,0.001,91495.0,91494.0,0.11809]
[1764347194749,0.06033,91495.0,91494.0,0.11809]
[1764347195056,0.11576,91495.0,91494.0,0.003]
[1764347195566,0.11476,91484.0,91483.0,0.01569935]
[1764347195864,0.1256901,91481.0,91480.0,0.00016395]
[1764347196258,0.1614901,91481.0,91480.0,0.00016395]
[1764347196465,0.1256924,91462.0,91461.0,0.057]
[1764347196664,0.11476,91462.0,91461.0,0.11509]
[1764347197161,0.0109322,91464.0,91463.0,0.057]
[1764347197854,0.00016395,91473.0,91463.0,0.057]
[1764347198060,0.0109316,91469.0,91463.0,0.057]
[1764347198360,0.0109314,91471.0,91463.0,0.057]
[1764347198556,0.00016395,91473.0,91472.0,0.11509]
[1764347199764,0.11492395,91473.0,91463.0,0.006]
[1764347199969,0.11492395,91473.0,91472.0,0.057]
[1764347200263,0.00016395,91473.0,91472.0,0.11509]
[1764347200670,0.00116395,91473.0,91472.0,0.11709]
[1764347201772,0.00016395,91473.0,91472.0,0.11509]
[1764347201957,0.0109295,91487.0,91486.0,0.11509]
[1764347203771,0.00016395,91496.0,91495.0,0.11509]
[1764347204868,0.0109273,91505.0,91504.0,0.11509]
[1764347205567,0.0109279,91500.0,91495.0,0.25975877]
[1764347205773,0.0109279,91500.0,91499.0,0.11509]
[1764347205970,0.0109256,91519.0,91518.0,0.11509]
[1764347206272,0.11476,91510.0,91509.0,0.00016395]
[1764347207660,0.11976,91510.0,91509.0,0.00116395]
[1764347208279,0.11476,91496.0,91495.0,0.01584653]
[1764347208474,0.010928,91499.0,91498.0,0.11509]
[1764347209162,0.070258,91499.0,91498.0,0.11509]
[1764347209569,0.125688,91499.0,91498.0,0.11509]
[1764347209763,0.0109276,91502.0,91501.0,0.11509]
[1764347210469,0.1256879,91499.0,91498.0,0.001]
[1764347210975,0.1256879,91499.0,91490.0,0.01616253]
[1764347211178,0.1256879,91499.0,91489.0,0.20183272]
[1764347211179,0.1256879,91499.0,91498.0,0.057]
[1764347211679,0.0139276,91502.0,91501.0,0.11509]
[1764347211979,0.11476,91490.0,91489.0,0.25883272]
[1764347212168,0.11476,91490.0,91489.0,0.05716395]
[1764347212372,0.003,91502.0,91501.0,0.11509]
[1764347212572,0.1256876,91502.0,91501.0,0.11509]
[1764347212776,0.1256876,91502.0,91501.0,0.057]
[1764347213076,0.0702585,91495.0,91494.0,0.057]
[1764347213266,0.00016395,91508.0,91489.0,0.00116395]
[1764347213267,0.125689,91490.0,91489.0,0.07451255]
[1764347213470,0.125689,91490.0,91489.0,0.00116395]
[1764347213665,0.010928,91499.0,91470.0,0.20166877]
[1764347213666,0.11476,91471.0,91470.0,0.057]
[1764347213871,0.11476,91471.0,91470.0,0.11509]
[1764347214474,0.11476,91471.0,91470.0,0.057]
[1764347214674,0.1256919,91466.0,91465.0,0.057]
[1764347214975,0.11476,91466.0,91465.0,0.057]
[1764347215181,0.11476,91466.0,91465.0,0.11509]
[1764347215380,0.05933,91466.0,91465.0,0.11509]
[1764347215576,0.0109315,91470.0,91469.0,0.11509]
[1764347215782,0.0702608,91476.0,91475.0,0.11509]
[1764347215978,0.1256908,91476.0,91475.0,0.11509]
[1764347216177,0.1256908,91476.0,91475.0,0.057]
[1764347216481,0.11476,91462.0,91461.0,0.00016395]
[1764347216776,0.010932,91465.0,91464.0,0.11509]
[1764347216972,0.070262,91465.0,91464.0,0.11509]
[1764347217382,0.125692,91465.0,91464.0,0.057]
[1764347217881,0.126692,91465.0,91464.0,0.059]
[1764347218782,0.011932,91465.0,91464.0,0.14996]
[1764347218976,0.001,91465.0,91464.0,0.14996]
[1764347219372,0.0109319,91466.0,91464.0,0.14796]
[1764347219579,0.001,91465.0,91464.0,0.14996]
[1764347219774,0.001,91465.0,91464.0,0.11709]
[1764347220479,0.0109319,91466.0,91465.0,0.11509]
[1764347220979,0.0109319,91466.0,91464.0,0.004]
[1764347220980,0.11476,91462.0,91461.0,0.00016395]
[1764347221584,0.11476,91462.0,91448.0,0.010934]
[1764347221585,0.1260028,91458.0,91440.0,0.03287]
[1764347221785,0.0702628,91458.0,91457.0,0.12132]
[1764347222083,0.1377725,91461.0,91460.0,0.11061]
[1764347222680,0.1190728,91458.0,91457.0,0.01071]
[1764347223784,0.1512336,91452.0,91451.0,0.00016395]
[1764347223980,0.1512336,91452.0,91446.0,2.22e-06]
[1764347223981,0.10814,91447.0,91446.0,2.22e-06]
[1764347224181,0.10814,91432.0,91420.0,0.20166877]
[1764347224394,0.03295,91440.0,91420.0,0.20166877]
[1764347224680,0.03295,91440.0,91420.0,0.11061]
[1764347224681,0.10814,91421.0,91420.0,0.11061]
[1764347224880,0.03295,91440.0,91420.0,0.11061]
[1764347224881,0.00016405,91430.0,91420.0,0.11061]
[1764347225185,8.327e-05,91421.0,91420.0,0.71227877]
[1764347225382,8.327e-05,91421.0,91420.0,0.11061]
[1764347226679,0.00208327,91421.0,91420.0,0.12261]
[1764347228082,0.11022327,91421.0,91420.0,0.12261]
[1764347228391,0.11022327,91421.0,91420.0,0.012]
[1764347229687,0.1190789,91407.0,91406.0,0.05081351]
[1764347229989,0.11919705,91407.0,91406.0,0.11088351]
[1764347230591,0.11919705,91407.0,91406.0,0.00027351]
[1764347230811,0.1200789,91407.0,91406.0,1e-08]
[1764347231107,0.0109419,91382.0,91381.0,0.13442162]
[1764347231400,7.924e-05,91382.0,91381.0,0.13442162]